bitfinex-derivatives/quotes_BTCF0:USTF0_20260207
["timestamp","ask_amount","ask_price","bid_price","bid_amount"]
[1770466390907,0.58057033,68916.0,68866.0,0.014535]
[1770466390908,0.57003283,68931.0,68894.0,0.03399139]
[1770466391103,0.0002,68924.0,68896.0,0.014528]
[1770466392117,0.57323283,68924.0,68883.0,0.03399139]
[1770466392415,0.57303283,68924.0,68884.0,0.014531]
[1770466392609,0.57303283,68924.0,68883.0,0.03399139]
[1770466392815,0.57303283,68924.0,68866.0,0.014534]
[1770466392816,0.57303283,68924.0,68872.0,0.0115555]
[1770466393015,0.57948149,68908.0,68872.0,0.0115555]
[1770466393720,0.57948149,68908.0,68870.0,0.014534]
[1770466394213,0.57948149,68908.0,68850.0,0.01807917]
[1770466395014,0.57948149,68908.0,68858.0,0.014536]
[1770466395513,0.57948149,68908.0,68850.0,0.01807917]
[1770466395715,0.57948149,68908.0,68856.0,0.01807917]
[1770466395912,0.57948149,68908.0,68874.0,0.014533]
[1770466396411,0.57948149,68908.0,68866.0,0.01988859]
[1770466396620,0.57948149,68908.0,68877.0,0.014532]
[1770466396814,0.57948149,68908.0,68880.0,0.014532]
[1770466397014,0.57948149,68908.0,68868.0,0.03442259]
[1770466397216,0.57948149,68908.0,68869.0,0.01988859]
[1770466397418,0.57948149,68908.0,68881.0,0.014531]
[1770466397619,0.5767038,68919.0,68879.0,0.01988859]
[1770466398319,0.5767038,68919.0,68883.0,0.014531]
[1770466398712,0.5767038,68919.0,68879.0,0.014532]
[1770466398917,0.57765013,68906.0,68879.0,0.014532]
[1770466399417,0.57765013,68941.0,68881.0,0.01704959]
[1770466399717,0.57765013,68941.0,68891.0,0.014529]
[1770466399925,0.57765013,68941.0,68884.0,0.01704959]
[1770466400315,0.57765013,68941.0,68892.0,0.014529]
[1770466400615,0.57765013,68941.0,68891.0,0.014529]
[1770466400917,0.57765013,68941.0,68894.0,0.014529]
[1770466401916,0.57765013,68941.0,68898.0,0.30285675]
[1770466402122,0.57765013,68941.0,68896.0,0.014528]
[1770466402510,0.57570146,68925.0,68888.0,0.13297512]
[1770466402714,0.57570146,68925.0,68890.0,0.0228956]
[1770466402915,0.57570146,68925.0,68901.0,0.014527]
[1770466404011,0.57570146,68925.0,68895.0,0.11007952]
[1770466404518,0.57570146,68925.0,68905.0,0.014526]
[1770466405023,0.5762323,68941.0,68911.0,0.03582809]
[1770466405214,0.5762323,68941.0,68912.0,0.02130309]
[1770466405525,0.5762323,68953.0,68912.0,0.02130309]
[1770466405719,0.5762323,68953.0,68917.0,0.11007952]
[1770466405924,0.5762323,68953.0,68917.0,0.02130309]
[1770466406116,0.5762323,68953.0,68918.0,0.02130309]
[1770466406418,0.57612823,68966.0,68932.0,0.02161529]
[1770466406619,0.0002,68987.0,68951.0,0.02141529]
[1770466406826,0.57612823,69015.0,68983.0,0.01451]
[1770466407019,0.57612823,69015.0,68979.0,0.014511]
[1770466407324,0.57612823,69015.0,68968.0,0.11185264]
[1770466407516,0.57612823,69015.0,68963.0,0.02141529]
[1770466407825,0.57612823,69015.0,68942.0,0.11185264]
[1770466408021,0.57612823,69015.0,68944.0,0.13326793]
[1770466408222,0.14812928,69030.0,68952.0,0.014516]
[1770466408223,0.57672455,68988.0,68952.0,0.014516]
[1770466408414,0.57672455,68988.0,68956.0,0.014516]
[1770466408615,0.57672455,69005.0,68961.0,0.01982634]
[1770466409019,0.57672455,69005.0,68965.0,0.014514]
[1770466409313,0.57672455,69005.0,68961.0,0.01982634]
[1770466409916,0.57672455,69005.0,68962.0,0.014514]
[1770466410121,0.57672455,69005.0,68961.0,0.01982634]
[1770466410323,0.57672455,69005.0,68967.0,0.03643753]
[1770466411019,0.57672455,69005.0,68979.0,0.014511]
[1770466411219,0.57303283,69018.0,68984.0,0.01451]
[1770466411424,0.57303283,69018.0,68974.0,0.014512]
[1770466411626,0.57303283,69018.0,68971.0,0.03643753]
[1770466412027,0.57303283,69018.0,68956.0,0.03643753]
[1770466412223,0.57303283,69018.0,68957.0,0.04684051]
[1770466412424,0.57303283,69017.0,68968.0,0.014513]
[1770466412620,0.57303283,69017.0,68958.0,0.03232551]
[1770466412621,0.57303283,69017.0,68967.0,0.03232551]
[1770466412816,0.57303283,69017.0,68973.0,0.03032551]
[1770466413228,0.57303283,69017.0,68979.0,0.014511]
[1770466413424,0.57303283,69017.0,68960.0,0.17845479]
[1770466413725,0.57303283,69017.0,68972.0,0.03032551]
[1770466414030,0.57303283,69017.0,68967.0,0.014513]
[1770466414223,0.57303283,69017.0,68941.0,0.11185264]
[1770466414417,0.57303283,69017.0,68938.0,0.16777896]
[1770466414418,0.14812928,69040.0,68965.0,0.00384191]
[1770466414615,0.58205269,69009.0,68952.0,0.00384191]
[1770466414820,0.58205269,69009.0,68934.0,0.072604]
[1770466414821,0.58205269,69009.0,68940.0,0.00400524]
[1770466415028,0.002,68968.0,68940.0,0.00400524]
[1770466415424,0.58205269,68967.0,68940.0,0.00016333]
[1770466416526,0.002,68968.0,68941.0,0.014519]
[1770466416726,0.56989405,68980.0,68944.0,0.014518]
[1770466417224,0.56989405,68980.0,68940.0,0.00016333]
[1770466417618,0.56989405,68980.0,68917.0,0.04031782]
[1770466417619,0.56983961,68966.0,68917.0,0.04031782]
[1770466417817,0.56983961,68966.0,68927.0,0.04048115]
[1770466418433,0.56983961,68966.0,68934.0,0.01452]
[1770466418628,0.00012284,68965.0,68930.0,0.014521]
[1770466418821,0.57241621,68965.0,68933.0,0.014521]
[1770466419124,0.57241621,68965.0,68932.0,0.014521]
[1770466419523,0.57241621,68965.0,68932.0,0.012521]
[1770466419723,0.57241621,68965.0,68927.0,0.04048115]
[1770466420223,0.57241621,68965.0,68918.0,0.11099533]
[1770466420625,0.58333333,68959.0,68909.0,0.014526]
[1770466420828,0.58333333,68957.0,68904.0,0.014526]
[1770466421123,0.58333333,68955.0,68904.0,0.014526]
[1770466421522,0.58333333,68953.0,68909.0,0.014525]
[1770466421930,0.58333333,68953.0,68896.0,0.25264122]
[1770466421931,0.58333333,68951.0,68904.0,0.014527]
[1770466422132,0.58333333,68949.0,68904.0,0.014527]
[1770466422331,0.002,68909.0,68904.0,0.014527]
[1770466422631,3.7e-07,68909.0,68904.0,0.014527]
[1770466422834,0.58153087,68939.0,68904.0,0.014527]
[1770466423623,0.58153087,68939.0,68906.0,0.014526]
[1770466423826,0.005,69048.0,68917.0,0.014524]
[1770466423827,0.00018236,68938.0,68917.0,0.014524]
[1770466424425,0.00018236,68938.0,68913.0,0.014525]
[1770466424621,0.00018236,68938.0,68913.0,0.012525]
[1770466425323,0.00018236,68938.0,68906.0,0.00540736]
[1770466425324,0.58082715,68938.0,68907.0,0.014526]
[1770466425532,0.58082715,68938.0,68910.0,0.014525]
[1770466425728,0.00011074,68937.0,68895.0,0.11099533]
[1770466425928,0.58075247,68936.0,68884.0,0.00806561]
[1770466426127,0.00012171,68887.0,68884.0,0.00806561]
[1770466426333,0.00012171,68887.0,68878.0,0.11099533]
[1770466426532,0.002,68885.0,68876.0,0.014533]
[1770466426837,0.002,68885.0,68875.0,0.0382314]
[1770466427635,0.00012171,68887.0,68875.0,0.0382314]
[1770466429234,0.00012171,68887.0,68859.0,0.16777896]
[1770466429235,0.00012171,68887.0,68864.0,0.014535]
[1770466429533,0.002,68876.0,68860.0,0.014536]
[1770466429729,0.002,68876.0,68863.0,0.014535]
[1770466429928,0.00012171,68887.0,68862.0,0.11099533]
[1770466430237,0.58333333,68907.0,68878.0,0.014532]
[1770466430627,0.58333333,68907.0,68865.0,0.11099533]
[1770466430835,0.58333333,68907.0,68864.0,0.11099533]
[1770466431227,0.00015315,68906.0,68881.0,0.30285675]
[1770466431428,0.58348648,68906.0,68876.0,0.014533]
[1770466431933,0.58348648,68906.0,68864.0,0.11099533]
[1770466431934,0.58348648,68906.0,68864.0,0.014535]
[1770466432131,0.58348648,68906.0,68867.0,0.014534]
[1770466432333,0.58348648,68906.0,68855.0,0.11099533]
[1770466433137,0.58348648,68906.0,68869.0,0.014534]
[1770466433439,0.58348648,68906.0,68858.0,0.014536]
[1770466433644,0.58348648,68906.0,68880.0,0.014532]
[1770466433833,0.58348648,68906.0,68877.0,0.014532]
[1770466434033,0.58348648,68906.0,68875.0,0.014533]
[1770466434428,0.58348648,68906.0,68877.0,0.014532]
[1770466434833,0.00015315,68906.0,68871.0,0.07267]
[1770466435034,0.58333333,68921.0,68895.0,0.014529]
[1770466435235,0.58333333,68921.0,68897.0,0.014528]
[1770466435435,0.58333333,68921.0,68896.0,0.014528]
[1770466435940,0.00012287,68920.0,68896.0,0.014528]
[1770466436545,0.00012287,68920.0,68903.0,0.014527]
[1770466436742,0.14770763,68950.0,68890.0,0.01453]
[1770466436743,0.58333333,68932.0,68890.0,0.01453]
[1770466437043,0.58333333,68932.0,68911.0,0.014525]
[1770466437240,0.58333333,68932.0,68914.0,0.014525]
[1770466437444,0.58333333,68932.0,68899.0,0.014528]
[1770466437445,0.54531243,68932.0,68902.0,0.0280212]
[1770466437747,0.14770763,68970.0,68927.0,0.014522]
[1770466437748,0.57399293,68969.0,68927.0,0.014522]
[1770466437938,0.57399293,68969.0,68928.0,0.014522]
[1770466438646,0.57399293,68969.0,68918.0,0.02653667]
[1770466438839,0.57399293,68969.0,68935.0,0.01452]
[1770466439141,0.57399293,68969.0,68918.0,0.02653667]
[1770466439142,0.57399293,68969.0,68939.0,0.014519]
[1770466439446,0.57399293,68969.0,68938.0,0.014519]
[1770466440040,0.57399293,68969.0,68934.0,0.01452]
[1770466440246,0.57687892,68939.0,68914.0,0.014525]
[1770466440543,0.57687892,68939.0,68910.0,0.014525]
[1770466440741,0.57687892,68939.0,68911.0,0.014525]
[1770466440947,0.57687892,68939.0,68917.0,0.014524]
[1770466441151,0.57487892,68969.0,68927.0,0.014522]
[1770466441353,0.57487892,68969.0,68924.0,0.02536323]
[1770466441842,0.57487892,68969.0,68938.0,0.014519]
[1770466442049,0.57487892,68969.0,68922.0,0.11099533]
[1770466442050,0.57487892,68969.0,68928.0,0.02536323]
[1770466442248,0.57487892,68969.0,68940.0,0.014519]
[1770466442441,0.57487892,68969.0,68923.0,0.014523]
[1770466442837,0.57487892,68969.0,68918.0,0.014524]
[1770466443044,0.57487892,68969.0,68908.0,0.11099533]
[1770466443242,0.57693543,68943.0,68917.0,0.014524]
[1770466443448,0.57693543,68943.0,68909.0,0.11099533]
[1770466444148,0.57693543,68943.0,68923.0,0.014523]
[1770466444443,0.57693543,68943.0,68911.0,0.014525]
[1770466445039,0.57693543,68943.0,68907.0,0.12552133]
[1770466445244,0.57693543,68943.0,68903.0,0.27877429]
[1770466445546,0.57693543,68943.0,68899.0,0.11099533]
[1770466445948,0.57693543,68943.0,68899.0,0.12552333]
[1770466446149,0.57693543,68943.0,68899.0,0.014528]
[1770466446349,0.57693543,68943.0,68901.0,0.30285675]
[1770466446751,0.57693543,68943.0,68899.0,0.014528]
[1770466446949,0.53545628,68919.0,68869.0,0.27946656]
[1770466447152,0.53545628,68899.0,68858.0,0.52750675]
[1770466447455,0.53545628,68899.0,68863.0,0.52750675]
[1770466447746,0.53545628,68899.0,68865.0,0.52750675]
[1770466447947,0.53545628,68899.0,68843.0,0.27966656]
[1770466447948,0.53545628,68897.0,68853.0,0.52750675]
[1770466448151,0.53545628,68897.0,68864.0,0.52750675]
[1770466450951,0.53545628,68897.0,68853.0,0.55746552]
[1770466451257,0.002,68865.0,68853.0,0.55746552]
[1770466451457,0.00010289,68865.0,68853.0,0.55746552]
[1770466451652,0.00010289,68865.0,68851.0,0.0002]
[1770466451653,0.52678648,68906.0,68859.0,0.55746552]
[1770466453555,0.52678648,68906.0,68871.0,0.55746552]
[1770466454056,0.52678648,68906.0,68871.0,0.55646552]
[1770466454358,0.52678648,68906.0,68864.0,0.014535]
[1770466454560,0.52678648,68906.0,68861.0,0.55746552]
[1770466454861,0.52678648,68906.0,68862.0,0.57200052]
[1770466455062,0.52678648,68906.0,68862.0,0.55746552]
[1770466455558,0.52678648,68906.0,68864.0,0.55746552]
[1770466458453,0.52678648,68918.0,68878.0,0.55746552]
[1770466458659,0.52678648,68918.0,68890.0,0.0002]
[1770466463755,0.52678648,68918.0,68888.0,0.01453]
[1770466464360,0.52678648,68930.0,68891.0,0.55746552]
[1770466464554,0.52678648,68930.0,68892.0,0.014529]
[1770466465056,0.52678648,68930.0,68883.0,0.014531]
[1770466465452,0.002,68892.0,68875.0,0.014533]
[1770466465656,0.002,68892.0,68878.0,0.014532]
[1770466466572,0.002,68892.0,68878.0,0.57199752]
[1770466467068,0.002,68892.0,68878.0,0.55746552]
[1770466467259,0.52678648,68922.0,68882.0,0.55746552]
[1770466467660,0.52678648,68922.0,68882.0,0.57199652]
[1770466468362,0.52678648,68922.0,68884.0,0.55746552]
[1770466469063,0.52678648,68922.0,68882.0,0.014531]
[1770466469367,0.52678648,68919.0,68873.0,0.57199852]
[1770466469568,0.14770763,68920.0,68875.0,0.014533]
[1770466469569,0.002,68885.0,68875.0,0.014533]
[1770466469773,0.002,68885.0,68859.0,0.55746552]
[1770466470067,0.002,68874.0,68867.0,0.014534]
[1770466470368,0.52678648,68904.0,68871.0,0.012534]
[1770466470871,0.52678648,68904.0,68865.0,0.014535]
[1770466472755,0.52678648,68904.0,68872.0,0.014533]
[1770466473664,0.52678648,68904.0,68871.0,0.014534]
[1770466473864,0.52678648,68904.0,68871.0,0.57199952]
[1770466474072,0.52678648,68904.0,68873.0,0.014533]
[1770466474460,0.52678648,68904.0,68875.0,0.55546552]
[1770466474761,0.52678648,68904.0,68877.0,0.014532]
[1770466475965,0.52678648,68904.0,68875.0,0.55546552]
[1770466476162,0.52678648,68904.0,68865.0,0.55011501]
[1770466476367,0.53337123,68905.0,68871.0,0.56464801]
[1770466476569,0.53337123,68905.0,68866.0,0.014535]
[1770466477069,0.53337123,68905.0,68868.0,0.014534]
[1770466477271,0.53337123,68905.0,68872.0,0.014533]
[1770466477670,0.53337123,68905.0,68869.0,0.014534]
[1770466478761,0.53337123,68905.0,68873.0,0.014533]
[1770466479373,0.53337123,68905.0,68879.0,0.62495313]
[1770466479768,0.53337123,68905.0,68873.0,0.014533]
[1770466480571,0.53337123,68905.0,68870.0,0.55011501]
[1770466480767,0.53337123,68905.0,68845.0,0.29400556]
[1770466480768,0.002,68874.0,68860.0,0.55011501]
[1770466480974,0.002,68874.0,68865.0,0.014535]
[1770466481276,0.53337123,68891.0,68867.0,0.014534]
[1770466481582,0.00200037,68890.0,68867.0,0.014534]
[1770466481969,0.00200037,68889.0,68873.0,0.014533]
[1770466482162,0.53337123,68901.0,68873.0,0.014533]
[1770466482369,0.5353716,68900.0,68873.0,0.014533]
[1770466482571,0.5353716,68900.0,68856.0,0.014537]
[1770466482572,0.53337123,68900.0,68870.0,0.56464901]
[1770466482767,0.00200037,68899.0,68870.0,0.56464901]
[1770466483170,0.00200037,68898.0,68870.0,0.56464901]
[1770466483373,0.00200037,68899.0,68870.0,0.56464901]
[1770466483778,0.00200037,68898.0,68870.0,0.56464901]
[1770466483975,0.00200037,68899.0,68870.0,0.56464901]
[1770466484478,0.00200037,68896.0,68870.0,0.56464901]
[1770466484670,0.5353716,68899.0,68870.0,0.56464901]
[1770466484870,0.53337123,68899.0,68870.0,0.56464901]
[1770466485074,0.00200037,68898.0,68870.0,0.56464901]
[1770466485276,0.00200037,68898.0,68873.0,0.014533]
[1770466485476,0.00200037,68897.0,68873.0,0.014533]
[1770466485677,0.00200037,68898.0,68873.0,0.014533]
[1770466486072,0.00200037,68897.0,68873.0,0.014533]
[1770466486272,0.00200037,68898.0,68873.0,0.014533]
[1770466486883,0.00200037,68897.0,68873.0,0.014533]
[1770466487175,0.53337123,68897.0,68870.0,0.014534]
[1770466487375,0.00200037,68896.0,68870.0,0.014534]
[1770466487579,0.5353716,68896.0,68870.0,0.014534]
[1770466487779,0.00200037,68895.0,68870.0,0.014534]
[1770466487976,0.00200037,68895.0,68872.0,0.014533]
[1770466488178,0.00200037,68894.0,68872.0,0.014533]
[1770466488383,0.5353716,68895.0,68863.0,0.55011501]
[1770466488681,0.53337123,68895.0,68872.0,0.014533]
[1770466488880,0.5353716,68894.0,68863.0,0.55011501]
[1770466489082,0.53337123,68894.0,68863.0,0.55011501]
[1770466489279,0.00200037,68893.0,68863.0,0.55011501]
[1770466489671,0.00200037,68892.0,68863.0,0.55011501]
[1770466489874,0.00200037,68893.0,68866.0,0.55011501]
[1770466490285,0.00200037,68892.0,68866.0,0.54811501]
[1770466490483,0.00200037,68893.0,68872.0,0.014533]
[1770466490884,0.00200037,68892.0,68872.0,0.014533]
[1770466491186,0.00200037,68893.0,68872.0,0.014533]
[1770466491385,0.00200037,68893.0,68874.0,0.014533]
[1770466491685,0.00200037,68892.0,68874.0,0.014533]
[1770466491878,0.00200037,68893.0,68874.0,0.014533]
[1770466492283,0.00200037,68892.0,68874.0,0.014533]
[1770466492478,0.53337123,68894.0,68874.0,0.014533]
[1770466492479,0.00200037,68893.0,68874.0,0.014533]
[1770466492877,0.00200037,68892.0,68874.0,0.014533]
[1770466493078,0.00200037,68893.0,68874.0,0.014533]
[1770466493475,0.00200037,68892.0,68874.0,0.014533]
[1770466493680,0.00200037,68893.0,68874.0,0.014533]
[1770466493877,0.00200037,68893.0,68869.0,0.55011501]
[1770466494085,0.00200037,68892.0,68869.0,0.55011501]
[1770466494284,0.53337123,68900.0,68869.0,0.55011501]
[1770466494487,0.53337123,68900.0,68880.0,0.62495313]
[1770466494688,0.5353716,68899.0,68880.0,0.62495313]
[1770466494893,0.53337123,68899.0,68873.0,0.014533]
[1770466495083,0.00200037,68898.0,68875.0,0.014533]
[1770466495490,0.00200037,68897.0,68875.0,0.014533]
[1770466495685,0.00200037,68898.0,68875.0,0.014533]
[1770466495984,0.5353716,68898.0,68875.0,0.014533]
[1770466496183,0.00200037,68897.0,68875.0,0.014533]
[1770466496602,0.00200037,68896.0,68875.0,0.014533]
[1770466496805,0.00200037,68897.0,68875.0,0.014533]
[1770466497102,0.5353716,68897.0,68875.0,0.014533]
[1770466497303,0.00200037,68896.0,68875.0,0.014533]
[1770466497702,0.00200037,68895.0,68875.0,0.014533]
[1770466497900,0.00200037,68896.0,68875.0,0.014533]
[1770466498102,0.5353716,68896.0,68872.0,0.014533]
[1770466498303,0.00200037,68895.0,68872.0,0.56464801]
[1770466498804,0.00200037,68894.0,68872.0,0.56464801]
[1770466499104,0.00200037,68894.0,68868.0,0.014534]
[1770466499105,0.53337123,68894.0,68868.0,0.014534]
[1770466499291,0.53337123,68894.0,68858.0,0.56465101]
[1770466499292,0.53337123,68892.0,68865.0,0.014535]
[1770466499497,0.53337123,68892.0,68867.0,0.012534]
[1770466499705,0.00200037,68891.0,68869.0,0.014534]
[1770466500202,0.5353716,68890.0,68866.0,0.014535]
[1770466500407,0.53337123,68890.0,68861.0,0.55011501]
[1770466500611,0.53337123,68902.0,68876.0,0.56464701]
[1770466500906,0.53337123,68902.0,68876.0,0.55011501]
[1770466502101,0.53337123,68902.0,68870.0,0.014534]
[1770466502302,0.53337123,68902.0,68867.0,0.55011501]
[1770466502602,0.53337123,68902.0,68867.0,0.54717553]
[1770466503504,0.53337123,68899.0,68858.0,0.55011501]
[1770466503709,0.53537123,68868.0,68845.0,0.0002]
[1770466504001,0.53537123,68868.0,68829.0,0.55011501]
[1770466504002,0.53537123,68868.0,68820.0,0.55011501]
[1770466504210,0.53537123,68868.0,68824.0,0.014544]
[1770466504396,0.53537123,68868.0,68821.0,0.014544]
[1770466504710,0.53337123,68868.0,68813.0,0.14553917]
[1770466504901,0.53337123,68866.0,68813.0,0.14553917]
[1770466505202,0.14774888,68850.0,68811.0,0.0002]
[1770466505406,0.14774888,68850.0,68797.0,0.014549]
[1770466505407,0.53337123,68849.0,68797.0,0.014549]
[1770466505602,1.7e-07,68798.0,68795.0,0.14711898]
[1770466505801,0.002,68814.0,68793.0,0.01455]
[1770466506002,0.002,68814.0,68795.0,0.14441382]
[1770466506411,0.56442287,68814.0,68790.0,0.0002]
[1770466507408,0.002,68791.0,68790.0,0.0002]
[1770466507608,0.56242287,68805.0,68786.0,0.00017929]
[1770466508014,0.56242287,68805.0,68772.0,0.56486019]
[1770466508316,0.56242287,68805.0,68769.0,0.0002]
[1770466508708,0.56242287,68805.0,68762.0,0.56486019]
[1770466509018,0.56242287,68803.0,68758.0,0.0002]
[1770466509316,0.57555119,68863.0,68758.0,0.0002]
[1770466509317,0.56242287,68801.0,68778.0,0.62495313]
[1770466509509,0.56242287,68799.0,68763.0,0.014556]
[1770466509707,0.56242287,68799.0,68766.0,0.014556]
[1770466510409,0.56242287,68799.0,68757.0,0.0002]
[1770466510410,0.56242287,68799.0,68758.0,0.14238121]
[1770466510615,0.002,68767.0,68757.0,0.0002]
[1770466510807,0.00016501,68766.0,68757.0,0.0002]
[1770466511013,0.00016501,68766.0,68753.0,0.0002]
[1770466511208,0.002,68758.0,68753.0,0.0002]
[1770466511421,0.00016501,68766.0,68742.0,0.014561]
[1770466511610,0.00016501,68766.0,68755.0,0.0002]
[1770466511809,0.5512794,68775.0,68755.0,0.0002]
[1770466512013,0.5512794,68775.0,68750.0,0.012559]
[1770466512211,0.5512794,68775.0,68748.0,0.0002]
[1770466512612,0.5512794,68775.0,68749.0,0.014559]
[1770466513217,0.5512794,68809.0,68759.0,0.55770338]
[1770466513413,0.43187937,68851.0,68768.0,0.55770338]
[1770466513414,0.5512794,68837.0,68768.0,0.55770338]
[1770466513719,0.5512794,68848.0,68810.0,0.55770338]
[1770466513909,0.5512794,68848.0,68815.0,0.014545]
[1770466514115,0.5512794,68848.0,68822.0,0.014544]
[1770466514317,0.5512794,68848.0,68815.0,0.55770338]
[1770466514518,0.5512794,68848.0,68823.0,0.014544]
[1770466514711,0.5512794,68848.0,68816.0,0.014545]
[1770466514916,0.5512794,68848.0,68811.0,0.014546]
[1770466515222,0.5512794,68848.0,68789.0,0.55770338]
[1770466515421,0.002,68816.0,68789.0,0.55770338]
[1770466515622,0.002,68816.0,68799.0,0.014549]
[1770466516120,0.002,68816.0,68803.0,0.014548]
[1770466519112,0.5512794,68859.0,68807.0,0.014547]
[1770466519513,0.5512794,68859.0,68811.0,0.014546]
[1770466520811,0.5512794,68859.0,68814.0,0.014545]
[1770466521011,0.5512794,68859.0,68797.0,0.55770338]
[1770466521419,0.5512794,68859.0,68810.0,0.014546]
[1770466522124,0.5512794,68831.0,68810.0,0.014546]
[1770466523918,0.5512794,68831.0,68806.0,0.014547]
[1770466524325,0.5512794,68831.0,68809.0,0.014547]
[1770466524624,0.5512794,68831.0,68811.0,0.62295313]
[1770466525514,0.5512794,68831.0,68794.0,0.0002]
[1770466526024,0.5512794,68831.0,68788.0,0.014551]
[1770466526411,0.5512794,68809.0,68784.0,0.01471497]
[1770466526613,0.5512794,68809.0,68784.0,0.00016297]
[1770466527725,0.5512794,68819.0,68794.0,0.01455]
[1770466528021,0.5512794,68819.0,68793.0,0.01455]
[1770466528320,0.5512794,68819.0,68796.0,0.014549]
[1770466528526,0.5512794,68819.0,68787.0,0.55770338]
[1770466529220,0.5512794,68819.0,68801.0,0.014548]
[1770466529427,0.5512794,68819.0,68787.0,0.55770338]
[1770466529428,0.5512794,68819.0,68803.0,0.014548]
[1770466529925,0.5512794,68859.0,68805.0,0.014547]
[1770466530126,0.5512794,68859.0,68807.0,0.014547]
[1770466530533,0.5512794,68859.0,68800.0,0.55770338]
[1770466531126,0.5512794,68859.0,68810.0,0.014546]
[1770466531820,0.5512794,68859.0,68813.0,0.014546]
[1770466532628,0.5512794,68859.0,68818.0,0.014545]
[1770466532824,0.5512794,68859.0,68808.0,0.55770338]
[1770466533032,0.5512794,68859.0,68819.0,0.55770338]
[1770466533218,0.5512794,68859.0,68839.0,0.01454]
[1770466533419,0.5512794,68859.0,68829.0,0.014542]
[1770466533730,0.5512794,68869.0,68853.0,0.014537]
[1770466533925,0.5512794,68909.0,68843.0,0.55770338]
[1770466534124,0.5512794,68909.0,68857.0,0.014536]
[1770466534327,0.5512794,68909.0,68860.0,0.014536]
[1770466534517,0.5512794,68909.0,68846.0,0.014539]
[1770466534721,0.5512794,68878.0,68842.0,0.55770338]
[1770466535027,0.5512794,68878.0,68839.0,0.0002]
[1770466535226,0.5512794,68878.0,68845.0,0.014539]
[1770466535424,0.5512794,68878.0,68848.0,0.014538]
[1770466535626,0.5512794,68878.0,68858.0,0.014536]
[1770466535828,0.5512794,68878.0,68846.0,0.52962154]
[1770466536029,0.5512794,68878.0,68835.0,0.54416254]
[1770466536328,0.5512794,68878.0,68836.0,0.014541]
[1770466536524,0.5512794,68878.0,68835.0,0.52962154]
[1770466536725,0.5512794,68878.0,68849.0,0.014538]
[1770466536928,0.5512794,68878.0,68846.0,0.52962154]
[1770466537132,0.5512794,68878.0,68851.0,0.014538]
[1770466537430,0.5512794,68878.0,68855.0,0.014537]
[1770466538228,0.54094062,68909.0,68855.0,0.014537]
[1770466538529,0.54094062,68909.0,68855.0,0.54415854]
[1770466538724,0.54094062,68909.0,68859.0,0.014536]
[1770466539225,0.54094062,68909.0,68855.0,0.54415854]
[1770466539429,0.54094062,68909.0,68862.0,0.52962154]
[1770466539724,0.54094062,68909.0,68882.0,0.014531]
[1770466540530,0.54094062,68909.0,68885.0,0.014531]
[1770466541124,0.54094062,68909.0,68887.0,0.01453]
[1770466541525,0.54094062,68909.0,68890.0,0.014529]
[1770466541728,0.14774888,68950.0,68893.0,0.014529]
[1770466541729,0.54094062,68919.0,68893.0,0.014529]
[1770466541922,0.54094062,68919.0,68899.0,0.014528]
[1770466542524,0.54094062,68919.0,68895.0,0.014529]
[1770466542926,0.54094062,68919.0,68884.0,0.52962154]
[1770466543125,0.54094062,68919.0,68898.0,0.014528]
[1770466543527,0.54094062,68919.0,68902.0,0.014527]
[1770466543935,0.54094062,68949.0,68903.0,0.52962154]
[1770466544129,0.54094062,68949.0,68910.0,0.52962154]
[1770466545243,0.54094062,68949.0,68931.0,0.014521]
[1770466545530,0.54094062,68949.0,68919.0,0.52962154]
[1770466545731,0.54094062,68949.0,68925.0,0.014522]
[1770466545937,0.54094062,68949.0,68928.0,0.014521]
[1770466546128,0.54094062,68959.0,68932.0,0.014521]
[1770466546329,0.54094062,68959.0,68935.0,0.01452]
[1770466546528,0.54094062,68959.0,68938.0,0.014519]
[1770466546930,0.54094062,68959.0,68941.0,0.014519]
[1770466547231,0.54094062,68989.0,68941.0,0.014519]
[1770466547532,0.54094062,68989.0,68947.0,0.014517]
[1770466547734,0.54094062,68989.0,68953.0,0.014516]
[1770466548235,0.54094062,68989.0,68939.0,0.014519]
[1770466548623,0.002,68950.0,68939.0,0.014519]
[1770466548824,0.54094062,68966.0,68932.0,0.014521]
[1770466549131,0.14774888,69010.0,68954.0,0.52962154]
[1770466549132,0.54094062,69010.0,68954.0,0.52962154]
[1770466549338,0.54094062,69010.0,68963.0,0.52962154]
[1770466549526,0.54094062,69010.0,68974.0,0.014512]
[1770466549927,0.54094062,69010.0,68974.0,0.54413354]
[1770466550128,0.54094062,69010.0,68977.0,0.014511]
[1770466550332,0.54094062,69010.0,68981.0,0.54413154]
[1770466550640,0.0002,69034.0,68961.0,0.072575]
[1770466550641,0.54094062,69020.0,68985.0,0.54413154]
[1770466550941,0.54094062,69020.0,68985.0,0.52962154]
[1770466551237,0.54094062,69020.0,68961.0,0.072575]
[1770466551426,0.54094062,69020.0,68962.0,0.52962154]
[1770466551628,0.54094062,69049.0,68980.0,0.14774888]
[1770466551825,0.54094062,69049.0,68981.0,0.52962154]
[1770466552539,0.54094062,69049.0,68981.0,0.54413154]
[1770466552741,0.01326698,69100.0,69053.0,0.52962154]
[1770466552937,0.01326698,69100.0,69057.0,0.52962154]
[1770466553237,0.5542076,69100.0,69063.0,0.014493]
[1770466553537,2.39530484,69230.0,69082.0,0.52962154]
[1770466553538,0.54094062,69139.0,69082.0,0.52962154]
[1770466553736,0.54094062,69139.0,69087.0,0.54410954]
[1770466553737,0.53794062,69139.0,69087.0,0.54410954]
[1770466554034,0.53794062,69139.0,69100.0,0.52962154]
[1770466554229,0.54094062,69150.0,69102.0,0.52962154]
[1770466554425,1.44915043,69200.0,69102.0,0.52962154]
[1770466554426,0.68782852,69160.0,69102.0,0.52962154]
[1770466554630,0.54094062,69173.0,69138.0,0.0541]
[1770466554825,1.26411727,69230.0,69139.0,0.52962154]
[1770466554826,0.54094062,69229.0,69139.0,0.52962154]
[1770466555029,0.54094062,69199.0,69139.0,0.52957154]
[1770466555229,0.54094062,69189.0,69149.0,0.0541]
[1770466555834,0.54089062,69189.0,69149.0,0.52962154]
[1770466556040,0.54094062,69201.0,69154.0,0.52962154]
[1770466556241,0.53794062,69233.0,69165.0,0.52962154]
[1770466556534,0.54094062,69259.0,69182.0,0.52962154]
[1770466556736,0.54094062,69259.0,69192.0,0.52962154]
[1770466557236,0.54094062,69259.0,69155.0,0.00020653]
[1770466557237,0.01583238,69275.0,69203.0,0.52962154]
[1770466557440,0.54094062,69259.0,69203.0,0.52962154]
[1770466557736,0.54094062,69259.0,69203.0,0.52762154]
[1770466557940,0.54094062,69259.0,69162.0,0.15259467]